bitfinex/quotes_BTCUSD_20230907
["timestamp","ask_amount","ask_price","bid_price","bid_amount"]
[1694101418684,0.27085817,25774.0,25773.0,1.68201]
[1694101418899,0.17780885,25774.0,25773.0,1.68201]
[1694101419114,0.17780885,25774.0,25773.0,1.68187329]
[1694101419326,0.27085817,25774.0,25773.0,1.68187329]
[1694101419984,0.17780885,25774.0,25773.0,1.68187329]
[1694101420659,0.27085817,25774.0,25773.0,1.68187329]
[1694101422825,0.27085817,25774.0,25773.0,1.80247329]
[1694101423773,0.27085817,25774.0,25773.0,2.57847829]
[1694101424978,0.17780885,25774.0,25773.0,2.57847829]
[1694101425658,0.27085817,25774.0,25773.0,2.57847829]
[1694101425890,0.17780885,25774.0,25773.0,2.57847829]
[1694101427912,0.17780885,25774.0,25773.0,2.65847829]
[1694101427913,0.02010885,25774.0,25773.0,2.65847829]
[1694101429124,0.02010885,25774.0,25773.0,2.99847829]
[1694101432104,0.02010885,25774.0,25773.0,3.89338151]
[1694101432336,1.31180274,25780.0,25779.0,2.50733829]
[1694101432337,1.07875878,25780.0,25779.0,2.50733829]
[1694101432594,1.07875878,25780.0,25779.0,3.44251329]
[1694101432868,0.25595878,25782.0,25781.0,0.01986329]
[1694101433101,0.163,25782.0,25781.0,3.26292329]
[1694101433369,0.09295878,25783.0,25782.0,0.02]
[1694101433566,0.1616,25783.0,25782.0,0.916322]
[1694101433793,0.1616,25783.0,25782.0,0.99618529]
[1694101434030,0.1616,25783.0,25782.0,2.54765529]
[1694101434486,0.1616,25783.0,25782.0,3.32339029]
[1694101435698,0.1616,25783.0,25782.0,3.34839029]
[1694101436874,0.86783269,25783.0,25782.0,0.12486329]
[1694101437107,0.86777269,25783.0,25782.0,0.12486329]
[1694101437339,0.86699269,25783.0,25782.0,0.14986329]
[1694101437573,0.86273269,25783.0,25782.0,0.14986329]
[1694101437799,0.78251269,25783.0,25782.0,0.14986329]
[1694101439417,0.78251269,25783.0,25782.0,0.92559829]
[1694101439895,0.80213708,25783.0,25782.0,0.92559829]
[1694101440585,0.64099761,25783.0,25782.0,0.92559829]
[1694101440781,0.63727761,25783.0,25782.0,0.92559829]
[1694101441078,0.56977761,25783.0,25782.0,1.70133329]
[1694101441779,0.63619761,25783.0,25782.0,1.70133329]
[1694101442028,0.63595761,25783.0,25782.0,1.70133329]
[1694101442299,0.63829761,25783.0,25782.0,1.70133329]
[1694101442565,0.56977761,25783.0,25782.0,1.70133329]
[1694101443004,0.64009761,25783.0,25782.0,1.70133329]
[1694101443227,0.63997761,25783.0,25782.0,1.70133329]
[1694101443454,0.56977761,25783.0,25782.0,1.70133329]
[1694101446229,0.56977761,25783.0,25782.0,2.47706829]
[1694101448475,0.56977761,25783.0,25782.0,1.70133329]
[1694101448476,0.64315761,25783.0,25782.0,1.70133329]
[1694101448704,0.56977761,25783.0,25782.0,1.70133329]
[1694101449559,0.64171761,25783.0,25782.0,1.70133329]
[1694101449762,0.56977761,25783.0,25782.0,1.70133329]
[1694101451659,0.63535761,25783.0,25782.0,1.70133329]
[1694101451864,0.56977761,25783.0,25782.0,1.70133329]
[1694101452275,0.56977761,25783.0,25782.0,2.47706829]
[1694101452887,0.56977761,25783.0,25782.0,2.59766829]
[1694101456746,0.18122439,25783.0,25782.0,2.59766829]
[1694101457617,0.01962439,25783.0,25782.0,2.59766829]
[1694101457831,0.01962439,25783.0,25782.0,2.47706829]
[1694101458048,0.1546,25785.0,25782.0,2.47706829]
[1694101458384,0.0196609,25784.0,25782.0,2.47706829]
[1694101458593,0.0196609,25784.0,25783.0,0.09986329]
[1694101458798,0.0196609,25784.0,25783.0,2.42697529]
[1694101459822,0.0196609,25784.0,25783.0,2.47197529]
[1694101461099,0.0196609,25784.0,25783.0,2.49697529]
[1694101461259,0.1851609,25784.0,25783.0,2.49697529]
[1694101462727,0.1851609,25784.0,25783.0,2.61757529]
[1694101466609,0.2739009,25784.0,25783.0,0.16986329]
[1694101466851,0.2738409,25784.0,25783.0,0.16986329]
[1694101467077,0.2726409,25784.0,25783.0,0.16986329]
[1694101467313,0.2722809,25784.0,25783.0,0.16986329]
[1694101467538,0.46346928,25784.0,25783.0,0.16986329]
[1694101467791,0.46196928,25784.0,25783.0,0.16986329]
[1694101468029,0.46184928,25784.0,25783.0,0.16986329]
[1694101468232,0.46202928,25784.0,25783.0,0.16986329]
[1694101468479,0.46052928,25784.0,25783.0,0.16986329]
[1694101468719,0.55048806,25784.0,25783.0,0.16986329]
[1694101468956,0.54928806,25784.0,25783.0,0.16986329]
[1694101469452,0.55090806,25784.0,25783.0,0.16986329]
[1694101469669,0.55000806,25784.0,25783.0,0.16986329]
[1694101469893,0.54988806,25784.0,25783.0,0.16986329]
[1694101470125,0.55060806,25784.0,25783.0,0.16986329]
[1694101470384,0.55042806,25784.0,25783.0,0.16986329]
[1694101470598,0.69056352,25784.0,25783.0,0.16986329]
[1694101470828,0.59802474,25784.0,25783.0,0.16986329]
[1694101471094,0.59784474,25784.0,25783.0,0.16986329]
[1694101471333,0.98681796,25784.0,25783.0,0.16986329]
[1694101471545,1.00313796,25784.0,25783.0,0.16986329]
[1694101471766,1.00061796,25784.0,25783.0,0.16986329]
[1694101471982,1.18786524,25784.0,25783.0,0.16986329]
[1694101472191,1.18762524,25784.0,25783.0,0.16986329]
[1694101472409,1.04753092,25784.0,25783.0,0.16986329]
[1694101472633,1.17264977,25784.0,25783.0,0.16986329]
[1694101472845,1.15458977,25784.0,25783.0,0.16986329]
[1694101473055,1.15446977,25784.0,25783.0,0.16986329]
[1694101473270,1.15476977,25784.0,25783.0,0.16986329]
[1694101473481,1.15518977,25784.0,25783.0,0.16986329]
[1694101473662,1.15488977,25784.0,25783.0,0.16986329]
[1694101473867,1.03085092,25784.0,25783.0,0.16986329]
[1694101474075,1.03103092,25784.0,25783.0,0.16986329]
[1694101474289,1.15541734,25784.0,25783.0,0.16986329]
[1694101474483,0.96572896,25784.0,25783.0,0.16986329]
[1694101474694,0.96548896,25784.0,25783.0,0.16986329]
[1694101474911,0.96482896,25784.0,25783.0,0.94556729]
[1694101475121,1.19734949,25784.0,25783.0,0.94556729]
[1694101475321,1.19746949,25784.0,25783.0,0.94556729]
[1694101475524,1.19770949,25784.0,25783.0,0.94556729]
[1694101475728,1.11646949,25784.0,25783.0,0.94556729]
[1694101476108,1.01228107,25784.0,25783.0,0.94556729]
[1694101476318,0.93050107,25784.0,25783.0,0.94556729]
[1694101476526,1.01324107,25784.0,25783.0,0.94556729]
[1694101476721,1.01318107,25784.0,25783.0,0.94556729]
[1694101476920,0.93050107,25784.0,25783.0,0.94556729]
[1694101477096,1.01672107,25784.0,25783.0,0.94556729]
[1694101477448,1.01546107,25784.0,25783.0,0.94556729]
[1694101477654,1.01504107,25784.0,25783.0,0.94556729]
[1694101477891,0.78264054,25784.0,25783.0,0.94556729]
[1694101478128,0.78252054,25784.0,25783.0,0.94556729]
[1694101478488,0.78318054,25784.0,25783.0,0.94556729]
[1694101478710,0.78360054,25784.0,25783.0,0.94556729]
[1694101478933,0.78330054,25784.0,25783.0,0.94556729]
[1694101479185,0.78300054,25784.0,25783.0,0.94556729]
[1694101479373,0.78192054,25784.0,25783.0,0.94556729]
[1694101479577,0.78606054,25784.0,25783.0,0.94556729]
[1694101479915,0.78528054,25784.0,25783.0,0.94556729]
[1694101480149,0.78498054,25784.0,25783.0,0.94556729]
[1694101480783,0.78516054,25784.0,25783.0,0.94556729]
[1694101480987,0.78492054,25784.0,25783.0,1.72127129]
[1694101481188,0.77622054,25784.0,25783.0,1.72127129]
[1694101481392,0.77526054,25784.0,25783.0,1.72127129]
[1694101481626,0.77532054,25784.0,25783.0,1.72127129]
[1694101481837,0.77502054,25784.0,25783.0,1.72127129]
[1694101482056,0.77496054,25784.0,25783.0,1.72127129]
[1694101482282,0.76848054,25784.0,25783.0,2.61757529]
[1694101482497,0.69804054,25784.0,25783.0,2.61757529]
[1694101482945,0.30923001,25784.0,25783.0,2.61757529]
[1694101483148,0.54205714,25784.0,25783.0,2.61757529]
[1694101485329,0.3453462,25784.0,25783.0,2.61757529]
[1694101485595,0.1590928,25784.0,25783.0,2.61757529]
[1694101487069,0.01940359,25784.0,25783.0,3.03757529]
[1694101487495,0.09309607,25786.0,25785.0,0.11986329]
[1694101487706,0.09309607,25787.0,25785.0,3.22243929]
[1694101487919,0.09309607,25787.0,25786.0,1.67109129]
[1694101488161,0.09309607,25787.0,25786.0,2.56730529]
[1694101489672,0.13968921,25788.0,25786.0,2.56730529]
[1694101489673,0.39638528,25788.0,25786.0,2.56730529]
[1694101489922,1.15646734,25788.0,25787.0,0.01986329]
[1694101490137,0.93769813,25788.0,25787.0,0.01986329]
[1694101490347,1.03735813,25788.0,25787.0,0.01986329]
[1694101490578,1.03753813,25788.0,25787.0,0.11986329]
[1694101490768,1.19715642,25788.0,25787.0,0.11986329]
[1694101490977,1.83295457,25788.0,25787.0,0.11986329]
[1694101491190,1.99021496,25788.0,25787.0,0.11986329]
[1694101491390,1.99075496,25788.0,25787.0,0.11986329]
[1694101491626,1.98931496,25788.0,25787.0,0.11986329]
[1694101491834,1.98871496,25788.0,25787.0,0.11986329]
[1694101492107,1.98829496,25788.0,25787.0,0.11986329]
[1694101492286,1.98811496,25788.0,25787.0,0.11986329]
[1694101492533,1.98721496,25788.0,25787.0,0.13286329]
[1694101492751,1.98709496,25788.0,25787.0,0.14786329]
[1694101492958,1.21136096,25788.0,25787.0,0.14786329]
[1694101493160,1.21118096,25788.0,25787.0,0.14786329]
[1694101493341,1.39527093,25788.0,25787.0,0.14786329]
[1694101493546,1.21094096,25788.0,25787.0,0.14786329]
[1694101493746,1.21112096,25788.0,25787.0,0.14786329]
[1694101493974,1.21040096,25788.0,25787.0,0.14786329]
[1694101494181,1.21022096,25788.0,25787.0,0.14786329]
[1694101494395,1.39303888,25788.0,25787.0,0.14786329]
[1694101494632,1.39285888,25788.0,25787.0,0.14786329]
[1694101494841,1.15967175,25788.0,25787.0,0.14786329]
[1694101495058,1.39423888,25788.0,25787.0,0.14786329]
[1694101495270,1.39423888,25788.0,25787.0,0.028]
[1694101495271,3.86920893,25788.0,25787.0,0.028]
[1694101495480,3.70061101,25788.0,25787.0,0.028]
[1694101495689,3.59762388,25788.0,25787.0,0.028]
[1694101495915,3.59762388,25788.0,25787.0,0.068]
[1694101496125,3.59114388,25788.0,25787.0,0.068]
[1694101496334,3.57458388,25788.0,25787.0,0.068]
[1694101496545,2.79710988,25788.0,25787.0,0.068]
[1694101496756,3.03116269,25788.0,25787.0,0.068]
[1694101496975,3.02756269,25788.0,25787.0,0.048]
[1694101497180,3.02480269,25788.0,25787.0,0.048]
[1694101497611,3.02372269,25788.0,25787.0,0.048]
[1694101497806,3.02360269,25788.0,25787.0,0.048]
[1694101498016,2.70148322,25788.0,25787.0,0.048]
[1694101498225,3.02350061,25788.0,25787.0,0.048]
[1694101498423,2.90290061,25788.0,25787.0,0.048]
[1694101498647,2.90170061,25788.0,25787.0,0.048]
[1694101498849,2.90086061,25788.0,25787.0,0.048]
[1694101499236,2.90122061,25788.0,25787.0,0.048]
[1694101499389,2.90230061,25788.0,25787.0,0.048]
[1694101499593,2.90218061,25788.0,25787.0,0.048]
[1694101499848,2.76754061,25788.0,25787.0,0.048]
[1694101500054,2.76850061,25788.0,25787.0,0.048]
[1694101500256,2.53540963,25788.0,25787.0,0.048]
[1694101500667,2.53534963,25788.0,25787.0,0.048]
[1694101500866,2.53468963,25788.0,25787.0,0.048]
[1694101501074,2.53504963,25788.0,25787.0,0.048]
[1694101501279,2.53552963,25788.0,25787.0,0.048]
[1694101501495,2.53210963,25788.0,25787.0,0.048]
[1694101501693,2.53072963,25788.0,25787.0,0.048]
[1694101501901,2.76394668,25788.0,25787.0,0.028]
[1694101502116,2.76316668,25788.0,25787.0,0.048]
[1694101502318,2.76172668,25788.0,25787.0,0.048]
[1694101502525,2.52970963,25788.0,25787.0,0.048]
[1694101502726,2.76256955,25788.0,25787.0,0.048]
[1694101503131,2.76262955,25788.0,25787.0,0.028]
[1694101503344,2.76292955,25788.0,25787.0,0.048]
[1694101503591,2.76304955,25788.0,25787.0,0.048]
[1694101503795,2.76274955,25788.0,25787.0,0.048]
[1694101504142,2.76238955,25788.0,25787.0,0.048]
[1694101504268,2.76190955,25788.0,25787.0,0.048]
[1694101504474,2.76196955,25788.0,25787.0,0.048]
[1694101504678,2.76202955,25788.0,25787.0,0.048]
[1694101505100,2.76208955,25788.0,25787.0,0.048]
[1694101505296,2.76346955,25788.0,25787.0,0.048]
[1694101505498,2.76346955,25788.0,25787.0,0.02]
[1694101505701,2.76220955,25788.0,25787.0,0.045]
[1694101505909,2.76202955,25788.0,25787.0,0.07]
[1694101506329,2.76274955,25788.0,25787.0,0.07]
[1694101506539,2.76262955,25788.0,25787.0,0.07]
[1694101506735,2.76220955,25788.0,25787.0,0.07]
[1694101506975,2.76214955,25788.0,25787.0,0.07]
[1694101507199,2.76076955,25788.0,25787.0,0.07]
[1694101507403,2.76058955,25788.0,25787.0,0.07]
[1694101507577,2.76040955,25788.0,25787.0,0.07]
[1694101508006,2.76022955,25788.0,25787.0,0.07]
[1694101508237,1.98503555,25788.0,25787.0,0.07]
[1694101508378,1.20372155,25788.0,25787.0,0.07]
[1694101508580,1.19658155,25788.0,25787.0,0.07]
[1694101508782,1.19658155,25788.0,25787.0,0.845584]
[1694101508783,1.0071473,25788.0,25787.0,0.845584]
[1694101508997,1.0071473,25788.0,25787.0,1.621168]
[1694101508998,0.61923452,25788.0,25787.0,1.621168]
[1694101509182,0.54789452,25788.0,25787.0,1.621168]
[1694101509461,0.61317452,25788.0,25787.0,1.621168]
[1694101509664,0.54789452,25788.0,25787.0,1.621168]
[1694101510096,0.61317452,25788.0,25787.0,1.621168]
[1694101510385,0.62055452,25788.0,25787.0,1.621168]
[1694101510612,0.62055452,25788.0,25787.0,0.07]
[1694101510613,0.88583579,25788.0,25787.0,0.07]
[1694101510841,2.74704079,25788.0,25787.0,0.07]
[1694101511067,2.74326079,25788.0,25787.0,0.07]
[1694101511289,2.74422079,25788.0,25787.0,0.07]
[1694101511498,2.74356079,25788.0,25787.0,0.07]
[1694101511719,2.74584079,25788.0,25787.0,0.07]
[1694101511941,2.97792071,25788.0,25787.0,0.07]
[1694101512156,2.97774071,25788.0,25787.0,0.07]
[1694101512368,2.97768071,25788.0,25787.0,0.07]
[1694101512578,2.97738071,25788.0,25787.0,0.07]
[1694101512838,2.97696071,25788.0,25787.0,0.07]
[1694101513022,2.97360071,25788.0,25787.0,0.07]
[1694101513236,2.97330071,25788.0,25787.0,0.07]
[1694101513458,2.97300071,25788.0,25787.0,0.07]
[1694101513683,2.97168071,25788.0,25787.0,0.07]
[1694101513878,2.97138071,25788.0,25787.0,0.07]
[1694101514129,2.97096071,25788.0,25787.0,0.07]
[1694101514342,2.96976071,25788.0,25787.0,0.07]
[1694101514527,2.19114671,25788.0,25787.0,0.07]
[1694101514740,1.40833271,25788.0,25787.0,0.07]
[1694101515018,1.40749271,25788.0,25787.0,0.07]
[1694101515228,1.40209271,25788.0,25787.0,0.07]
[1694101515456,1.40347271,25788.0,25787.0,0.07]
[1694101515616,1.40311271,25788.0,25787.0,0.07]
[1694101515842,1.40089271,25788.0,25787.0,0.07]
[1694101516063,1.39963271,25788.0,25787.0,0.07]
[1694101516284,1.16707279,25788.0,25787.0,0.07]
[1694101516586,1.16837757,25788.0,25787.0,0.07]
[1694101516799,1.16909757,25788.0,25787.0,0.07]
[1694101517009,1.16987757,25788.0,25787.0,0.07]
[1694101517163,1.16981757,25788.0,25787.0,0.07]
[1694101517376,1.16873757,25788.0,25787.0,0.07]
[1694101517646,1.07584971,25788.0,25787.0,0.07]
[1694101517821,1.07602971,25788.0,25787.0,0.07]
[1694101518224,1.07596971,25788.0,25787.0,0.07]
[1694101518422,1.07578971,25788.0,25787.0,0.07]
[1694101518600,1.16551324,25788.0,25787.0,0.07]
[1694101518807,1.16455324,25788.0,25787.0,0.07]
[1694101518997,1.16449324,25788.0,25787.0,0.07]
[1694101519200,1.16437324,25788.0,25787.0,0.07]
[1694101519465,1.16773324,25788.0,25787.0,0.07]
[1694101519953,1.16725324,25788.0,25787.0,0.07]
[1694101520223,1.16719324,25788.0,25787.0,0.07]
[1694101520460,1.16647324,25788.0,25787.0,0.07]
[1694101520654,1.16425324,25788.0,25787.0,0.07]
[1694101520880,1.16419324,25788.0,25787.0,0.07]
[1694101521109,1.16407324,25788.0,25787.0,0.07]
[1694101521324,1.16389324,25788.0,25787.0,0.07]
[1694101521520,1.16395324,25788.0,25787.0,0.07]
[1694101521790,1.39639316,25788.0,25787.0,0.07]
[1694101522044,1.39633316,25788.0,25787.0,0.07]
[1694101522275,1.39621316,25788.0,25787.0,0.07]
[1694101522515,1.39537316,25788.0,25787.0,0.07]
[1694101522747,0.67196844,25788.0,25787.0,0.07]
[1694101522986,0.80596521,25788.0,25787.0,0.845584]
[1694101523250,0.80596521,25788.0,25787.0,1.621168]
[1694101523251,0.80476521,25788.0,25787.0,1.621168]
[1694101523508,0.80458521,25788.0,25787.0,0.845584]
[1694101523724,0.73390521,25788.0,25787.0,0.845584]
[1694101524296,0.80542521,25788.0,25787.0,0.845584]
[1694101524501,0.66596844,25788.0,25787.0,0.845584]
[1694101524697,0.66602844,25788.0,25787.0,0.845584]
[1694101524899,0.66662844,25788.0,25787.0,0.845584]
[1694101525112,0.80676547,25788.0,25787.0,0.845584]
[1694101525322,0.80592547,25788.0,25787.0,0.845584]
[1694101525515,0.66722844,25788.0,25787.0,0.845584]
[1694101525715,0.66290844,25788.0,25787.0,0.845584]
[1694101525963,0.66680844,25788.0,25787.0,0.845584]
[1694101526495,0.75743988,25788.0,25787.0,0.845584]
[1694101526703,0.76073988,25788.0,25787.0,0.845584]
[1694101526903,0.76085988,25788.0,25787.0,0.845584]
[1694101527091,0.76571988,25788.0,25787.0,0.07]
[1694101527319,0.76859988,25788.0,25787.0,0.07]
[1694101527528,0.76841988,25788.0,25787.0,0.07]
[1694101527733,0.76925988,25788.0,25787.0,0.07]
[1694101527944,1.0010398,25788.0,25787.0,0.07]
[1694101528159,0.76877988,25788.0,25787.0,0.07]
[1694101528364,1.0023598,25788.0,25787.0,0.07]
[1694101528577,1.0025398,25788.0,25787.0,0.07]
[1694101528789,1.0025998,25788.0,25787.0,0.07]
[1694101529004,1.0027798,25788.0,25787.0,0.07]
[1694101529224,1.23403945,25788.0,25787.0,0.07]
[1694101529620,1.04812667,25788.0,25787.0,0.07]
[1694101529824,1.04818667,25788.0,25787.0,0.07]
[1694101530026,1.04608667,25788.0,25787.0,0.07]
[1694101530247,1.04548667,25788.0,25787.0,0.07]
[1694101530457,1.04398667,25788.0,25787.0,0.07]
[1694101530660,1.04440667,25788.0,25787.0,0.07]
[1694101530865,1.05064667,25788.0,25787.0,0.07]
[1694101531074,1.05070667,25788.0,25787.0,0.07]
[1694101531297,2.9178091,25788.0,25787.0,0.07]
[1694101531503,3.1179691,25788.0,25787.0,0.07]
[1694101531708,3.2650291,25788.0,25787.0,0.07]
[1694101531938,3.2676691,25788.0,25787.0,0.07]
[1694101532356,3.49311493,25788.0,25787.0,0.07]
[1694101532565,3.35979493,25788.0,25787.0,0.07]
[1694101532778,3.36575635,25788.0,25787.0,0.07]
[1694101532990,3.36485635,25788.0,25787.0,0.045]
[1694101533200,3.36419635,25788.0,25787.0,0.051]
[1694101533409,3.36269635,25788.0,25787.0,0.051]
[1694101533588,3.36179635,25788.0,25787.0,0.026]
[1694101533806,3.36161635,25788.0,25787.0,0.026]
[1694101533967,3.36299635,25788.0,25787.0,0.026]
[1694101534130,3.36425635,25788.0,25787.0,0.026]
[1694101534349,3.36407635,25788.0,25787.0,0.026]
[1694101534554,3.36605635,25788.0,25787.0,0.031]
[1694101534783,3.36587635,25788.0,25787.0,0.031]
[1694101534984,3.36575635,25788.0,25787.0,0.031]
[1694101535184,3.36557635,25788.0,25787.0,0.031]
[1694101535383,3.36383635,25788.0,25787.0,0.031]
[1694101535602,3.36371635,25788.0,25787.0,0.031]
[1694101535777,3.36563635,25788.0,25787.0,0.031]
[1694101535981,3.36371635,25788.0,25787.0,0.031]
[1694101536186,3.36359635,25788.0,25787.0,0.031]
[1694101536421,2.58774235,25788.0,25787.0,0.031]
[1694101536642,2.58756235,25788.0,25787.0,0.031]
[1694101536859,2.58786235,25788.0,25787.0,0.031]
[1694101537066,2.58774235,25788.0,25787.0,0.031]
[1694101537267,2.58762235,25788.0,25787.0,0.031]
[1694101537526,2.58744235,25788.0,25787.0,0.031]
[1694101537734,2.58336235,25788.0,25787.0,0.031]
[1694101537939,2.58282235,25788.0,25787.0,0.031]
[1694101538164,2.58306235,25788.0,25787.0,0.031]
[1694101538286,2.58546235,25788.0,25787.0,0.031]
[1694101538684,2.58804235,25788.0,25787.0,0.031]
[1694101538829,2.58834235,25788.0,25787.0,0.031]
[1694101539048,2.58858235,25788.0,25787.0,0.031]
[1694101539250,2.58708235,25788.0,25787.0,0.031]
[1694101539470,2.58486235,25788.0,25787.0,0.031]
[1694101539677,2.58492235,25788.0,25787.0,0.031]
[1694101539893,2.58498235,25788.0,25787.0,0.031]
[1694101540134,2.58762235,25788.0,25787.0,0.031]
[1694101540280,2.58828235,25788.0,25787.0,0.031]
[1694101540479,2.58816235,25788.0,25787.0,0.031]
[1694101540705,2.58810235,25788.0,25787.0,0.031]
[1694101540883,2.58762235,25788.0,25787.0,0.031]
[1694101541123,2.58720235,25788.0,25787.0,0.031]
[1694101541443,2.58696235,25788.0,25787.0,0.031]
[1694101541692,2.58744235,25788.0,25787.0,0.031]
[1694101541940,2.58774235,25788.0,25787.0,0.011]
[1694101542168,2.59056235,25788.0,25787.0,0.031]
[1694101542386,2.59080235,25788.0,25787.0,0.031]
[1694101542683,2.59038235,25788.0,25787.0,0.031]
[1694101543082,2.59032235,25788.0,25787.0,0.031]
[1694101543236,2.59026235,25788.0,25787.0,0.031]
[1694101543455,2.59002235,25788.0,25787.0,0.031]
[1694101543666,2.58924235,25788.0,25787.0,0.031]
[1694101543886,2.58918235,25788.0,25787.0,0.031]
[1694101544089,2.58804235,25788.0,25787.0,0.031]
[1694101544317,2.58702235,25788.0,25787.0,0.031]
[1694101544531,2.58672235,25788.0,25787.0,0.031]
[1694101544729,2.58666235,25788.0,25787.0,0.031]
[1694101544960,2.58648235,25788.0,25787.0,0.031]
[1694101545169,2.58642235,25788.0,25787.0,0.031]
[1694101545382,2.58636235,25788.0,25787.0,0.031]
[1694101545620,2.58606235,25788.0,25787.0,0.031]
[1694101545875,2.58492235,25788.0,25787.0,0.031]
[1694101546116,2.58486235,25788.0,25787.0,0.031]
[1694101546359,2.58480235,25788.0,25787.0,0.031]
[1694101546590,2.58474235,25788.0,25787.0,0.031]
[1694101546813,2.58480235,25788.0,25787.0,0.031]
[1694101547038,2.58486235,25788.0,25787.0,0.031]
[1694101547383,2.58582235,25788.0,25787.0,0.031]
[1694101547593,2.58576235,25788.0,25787.0,0.031]
[1694101547795,2.58570235,25788.0,25787.0,0.031]
[1694101547975,2.58564235,25788.0,25787.0,0.031]
[1694101548173,2.58558235,25788.0,25787.0,0.031]
[1694101548374,2.58552235,25788.0,25787.0,0.031]
[1694101548599,2.58492235,25788.0,25787.0,0.031]
[1694101549021,2.58486235,25788.0,25787.0,0.031]
[1694101549254,2.58480235,25788.0,25787.0,0.031]
[1694101549424,2.58396235,25788.0,25787.0,0.031]
[1694101549585,2.58378235,25788.0,25787.0,0.031]
[1694101549788,2.58372235,25788.0,25787.0,0.031]
[1694101549991,2.58366235,25788.0,25787.0,0.031]
[1694101550266,2.58324235,25788.0,25787.0,0.011]
[1694101550587,2.58324235,25788.0,25787.0,0.031]
[1694101550914,2.58318235,25788.0,25787.0,0.031]
[1694101551164,2.58294235,25788.0,25787.0,0.031]
[1694101551344,2.58300235,25788.0,25787.0,0.031]
[1694101551521,2.58306235,25788.0,25787.0,0.031]
[1694101551732,2.58354235,25788.0,25787.0,0.031]
[1694101551932,2.58258235,25788.0,25787.0,0.031]
[1694101552137,2.58102235,25788.0,25787.0,0.031]
[1694101552335,2.57832235,25788.0,25787.0,0.031]
[1694101552508,2.57808235,25788.0,25787.0,0.031]
[1694101552743,2.57718235,25788.0,25787.0,0.031]
[1694101552950,2.57532235,25788.0,25787.0,0.031]
[1694101553181,2.57538235,25788.0,25787.0,0.031]
[1694101553336,2.57532235,25788.0,25787.0,0.031]
[1694101553727,2.57358235,25788.0,25787.0,0.031]
[1694101553926,2.57370235,25788.0,25787.0,0.031]
[1694101554196,2.57358235,25788.0,25787.0,0.031]
[1694101554325,2.57346235,25788.0,25787.0,0.031]
[1694101554530,2.57508235,25788.0,25787.0,0.031]
[1694101555135,2.57496235,25788.0,25787.0,0.031]
[1694101555566,2.57424235,25788.0,25787.0,0.031]
[1694101555805,1.79772835,25788.0,25787.0,0.031]
[1694101556045,1.79742835,25788.0,25787.0,0.031]
[1694101556310,1.79754835,25788.0,25787.0,0.031]
[1694101556779,1.79826835,25788.0,25787.0,0.031]
[1694101556979,1.79832835,25788.0,25787.0,0.031]
[1694101557210,1.79820835,25788.0,25787.0,0.031]
[1694101557391,1.79832835,25788.0,25787.0,0.031]
[1694101557686,1.79820835,25788.0,25787.0,0.031]
[1694101557863,1.79826835,25788.0,25787.0,0.031]
[1694101558025,1.79832835,25788.0,25787.0,0.031]
[1694101558234,1.79958835,25788.0,25787.0,0.031]
[1694101558440,1.79916835,25788.0,25787.0,0.031]
[1694101558646,1.80378835,25788.0,25787.0,0.031]
[1694101558889,1.80342835,25788.0,25787.0,0.031]
[1694101559105,1.80462835,25788.0,25787.0,0.031]
[1694101559296,1.80348835,25788.0,25787.0,0.011]
[1694101559559,1.80240835,25788.0,25787.0,0.031]
[1694101559803,1.80234835,25788.0,25787.0,0.031]
[1694101560009,1.80204835,25788.0,25787.0,0.031]
[1694101560238,0.82591435,25788.0,25787.0,0.031]
[1694101560469,1.05800502,25788.0,25787.0,0.031]
[1694101560702,0.98360502,25788.0,25787.0,0.031]
[1694101560880,0.75085435,25788.0,25787.0,0.031]
[1694101561703,0.82771435,25788.0,25787.0,0.031]
[1694101561914,1.06114514,25788.0,25787.0,0.031]
[1694101562128,0.98362514,25788.0,25787.0,0.031]
[1694101562604,0.75085435,25788.0,25787.0,0.031]
[1694101562839,0.82663435,25788.0,25787.0,0.031]
[1694101563061,0.81997435,25788.0,25787.0,0.806584]
[1694101563305,0.98361856,25788.0,25787.0,0.806584]
[1694101563805,1.05651856,25788.0,25787.0,0.806584]
[1694101564027,0.98361856,25788.0,25787.0,0.806584]
[1694101564253,1.05819856,25788.0,25787.0,0.806584]
[1694101564489,1.05585856,25788.0,25787.0,0.806584]
[1694101564733,0.98361856,25788.0,25787.0,0.806584]
[1694101565439,1.05171856,25788.0,25787.0,0.806584]
[1694101565675,1.05387856,25788.0,25787.0,1.582168]
[1694101565882,1.05549856,25788.0,25787.0,1.582168]
[1694101566088,0.98361856,25788.0,25787.0,1.582168]
[1694101566807,0.98361856,25788.0,25787.0,0.806584]
[1694101567035,0.81151273,25788.0,25787.0,1.582168]
[1694101567283,0.3083212,25788.0,25787.0,2.57821529]
[1694101567517,0.12511199,25788.0,25787.0,2.57821529]
[1694101568063,0.03200386,25788.0,25787.0,2.57821529]
[1694101568244,0.03200386,25788.0,25787.0,2.57321529]
[1694101568491,0.03200386,25788.0,25787.0,2.57721529]
[1694101568912,0.03200386,25788.0,25787.0,2.57321529]
[1694101569092,0.03200386,25788.0,25787.0,2.56721529]
[1694101569293,0.03200386,25788.0,25787.0,2.61721529]
[1694101569618,0.03200386,25788.0,25787.0,2.59221529]
[1694101569750,0.02315088,25788.0,25787.0,2.59221529]
[1694101569954,0.02315088,25788.0,25787.0,2.61721529]
[1694101570392,0.00328844,25788.0,25787.0,2.61721529]
[1694101570614,2.04552988,25790.0,25787.0,2.61721529]
[1694101570794,2.04552988,25790.0,25789.0,0.1206]
[1694101570993,1.90586769,25790.0,25789.0,1.01598729]
[1694101572471,1.90586769,25790.0,25789.0,1.03098729]
[1694101574676,2.04552988,25790.0,25789.0,1.03098729]
[1694101575176,1.90586769,25790.0,25789.0,1.01598729]
[1694101575383,2.04552988,25790.0,25789.0,1.05398729]
[1694101575669,1.90586769,25790.0,25789.0,1.05398729]
[1694101575875,1.90586769,25790.0,25789.0,1.01598729]
[1694101576083,1.90586769,25790.0,25789.0,1.04098729]
[1694101576288,1.90586769,25790.0,25789.0,1.06598729]
[1694101577445,1.81275956,25790.0,25789.0,1.06598729]
[1694101578263,1.97444769,25790.0,25789.0,0.94538729]